[Event "Late-Titled-Tuesday-Blitz-February-27-2024"]
[Site "Chess.com"]
[Date "2024.02.27"]
[Round "2"]
[White "ukchessbomber"]
[Black "mishanick"]
[Result "1-0"]
[WhiteElo "2653"]
[BlackElo "3070"]
[TimeControl "180+1"]
[EndTime "14:17:51 PST"]
[Termination "ukchessbomber won by resignation"]

1. b4 {[%clk 0:03:00.9]} 1... e5 {[%clk 0:02:58.7]} 2. Bb2 {[%clk 0:02:59.4]}
2... d6 {[%clk 0:02:57.8]} 3. e3 {[%clk 0:02:58]} 3... Bf5 {[%clk 0:02:50]} 4.
c4 {[%clk 0:02:58.2]} 4... a5 {[%clk 0:02:48.6]} 5. a3 {[%clk 0:02:58]} 5... Nf6
{[%clk 0:02:43.1]} 6. Nf3 {[%clk 0:02:55.9]} 6... e4 {[%clk 0:02:32.1]} 7. Nd4
{[%clk 0:02:55.6]} 7... Bg6 {[%clk 0:02:32.7]} 8. Be2 {[%clk 0:02:56]} 8... c5
{[%clk 0:02:29.8]} 9. bxc5 {[%clk 0:02:51.2]} 9... dxc5 {[%clk 0:02:30.7]} 10.
Nb5 {[%clk 0:02:51.4]} 10... Nc6 {[%clk 0:02:28.8]} 11. O-O {[%clk 0:02:50.9]}
11... Be7 {[%clk 0:02:29.4]} 12. N1c3 {[%clk 0:02:41.3]} 12... O-O {[%clk
0:02:27.1]} 13. Na4 {[%clk 0:02:41.7]} 13... Re8 {[%clk 0:02:10.5]} 14. Bxf6
{[%clk 0:02:38.2]} 14... Bxf6 {[%clk 0:02:07.7]} 15. Rb1 {[%clk 0:02:38.7]}
15... b6 {[%clk 0:01:44.3]} 16. Nbc3 {[%clk 0:02:37.2]} 16... Bxc3 {[%clk
0:01:44.7]} 17. dxc3 {[%clk 0:01:54.3]} 17... Qg5 {[%clk 0:01:42.2]} 18. Nxb6
{[%clk 0:01:40.8]} 18... Ne5 {[%clk 0:01:39.3]} 19. Nxa8 {[%clk 0:01:34]} 19...
Rxa8 {[%clk 0:01:40.2]} 20. Qd5 {[%clk 0:01:16.2]} 20... Re8 {[%clk 0:01:24.9]}
21. Rb5 {[%clk 0:01:10.6]} 21... h5 {[%clk 0:01:21.9]} 22. Rxc5 {[%clk
0:01:04.1]} 22... h4 {[%clk 0:01:18.5]} 23. h3 {[%clk 0:01:04.5]} 23... Bf5
{[%clk 0:01:18]} 24. Kh2 {[%clk 0:01:03.9]} 24... Kh7 {[%clk 0:01:11.2]} 25. Rb1
{[%clk 0:00:59.7]} 25... Qf6 {[%clk 0:01:00.4]} 26. Rbb5 {[%clk 0:00:58]} 26...
g6 {[%clk 0:00:22.5]} 27. Qd4 {[%clk 0:00:17.2]} 27... Bxh3 {[%clk 0:00:22.9]}
28. Rxe5 {[%clk 0:00:16.6]} 28... Qxf2 {[%clk 0:00:22.5]} 29. Qxe4 {[%clk
0:00:17.2]} 29... Qg3+ {[%clk 0:00:20.4]} 30. Kg1 {[%clk 0:00:16.8]} 30... Rd8
{[%clk 0:00:03.1]} 31. Rbd5 {[%clk 0:00:15.8]} 31... Rb8 {[%clk 0:00:02.9]} 32.
Rb5 {[%clk 0:00:16]} 32... Rd8 {[%clk 0:00:02.9]} 33. Rh5+ {[%clk 0:00:16.6]}
33... Kg8 {[%clk 0:00:03.1]} 34. Rhd5 {[%clk 0:00:17.2]} 34... Rf8 {[%clk
0:00:02.7]} 35. Qf3 {[%clk 0:00:15.3]} 35... Qe1+ {[%clk 0:00:03.2]} 36. Qf1
{[%clk 0:00:15.5]} 36... Qg3 {[%clk 0:00:03.5]} 37. Qf2 {[%clk 0:00:16.1]} 37...
Be6 {[%clk 0:00:03.4]} 38. Qxg3 {[%clk 0:00:15.9]} 38... hxg3 {[%clk 0:00:04.3]}
39. Rd4 {[%clk 0:00:16.4]} 39... Rc8 {[%clk 0:00:04.6]} 40. c5 {[%clk
0:00:16.6]} 40... Kg7 {[%clk 0:00:05.3]} 41. Bf3 {[%clk 0:00:16.9]} 41... Kf6
{[%clk 0:00:03.3]} 42. Kf1 {[%clk 0:00:17.2]} 42... g5 {[%clk 0:00:03]} 43. Rb6
{[%clk 0:00:17.5]} 43... Rxc5 {[%clk 0:00:02.8]} 44. c4 {[%clk 0:00:16.7]} 44...
Ke5 {[%clk 0:00:02.8]} 45. Bd5 {[%clk 0:00:15.1]} 45... Bf5 {[%clk 0:00:02.6]}
46. Rb5 {[%clk 0:00:14.3]} 46... Rc7 {[%clk 0:00:03.1]} 47. Be4+ {[%clk
0:00:14.3]} 47... Kf6 {[%clk 0:00:03.5]} 48. Rxf5+ {[%clk 0:00:14.3]} 1-0

[Event "Late-Titled-Tuesday-Blitz-February-27-2024"]
[Site "Chess.com"]
[Date "2024.02.27"]
[Round "2"]
[White "yaguigor"]
[Black "Oleksandr_Bortnyk"]
[Result "0-1"]
[WhiteElo "2625"]
[BlackElo "3054"]
[TimeControl "180+1"]
[EndTime "14:17:53 PST"]
[Termination "Oleksandr_Bortnyk won by resignation"]

1. e4 {[%clk 0:03:00.9]} 1... Nf6 {[%clk 0:02:56.8]} 2. e5 {[%clk 0:02:59.7]}
2... Nd5 {[%clk 0:02:54.7]} 3. d4 {[%clk 0:03:00.3]} 3... d6 {[%clk 0:02:55.2]}
4. Nf3 {[%clk 0:02:59.8]} 4... dxe5 {[%clk 0:02:55.6]} 5. Nxe5 {[%clk
0:02:59.6]} 5... c6 {[%clk 0:02:55.6]} 6. Be2 {[%clk 0:02:59.3]} 6... Bf5 {[%clk
0:02:54.9]} 7. Bd3 {[%clk 0:02:54.1]} 7... Bxd3 {[%clk 0:02:48.4]} 8. Nxd3
{[%clk 0:02:53.5]} 8... Nd7 {[%clk 0:02:44.9]} 9. O-O {[%clk 0:02:53.1]} 9... e6
{[%clk 0:02:44.4]} 10. c4 {[%clk 0:02:52.2]} 10... N5f6 {[%clk 0:02:38.6]} 11.
Nc3 {[%clk 0:02:51.9]} 11... Bd6 {[%clk 0:02:38.5]} 12. Qe2 {[%clk 0:02:47]}
12... O-O {[%clk 0:02:33.8]} 13. Ne5 {[%clk 0:02:45.2]} 13... Qa5 {[%clk
0:02:24.8]} 14. Bf4 {[%clk 0:02:42.9]} 14... Bb4 {[%clk 0:02:05.4]} 15. Rac1
{[%clk 0:02:35.3]} 15... Rad8 {[%clk 0:02:03.6]} 16. a3 {[%clk 0:02:33.5]} 16...
Bxc3 {[%clk 0:01:40.2]} 17. Rxc3 {[%clk 0:02:32.5]} 17... Nxe5 {[%clk
0:01:40.7]} 18. dxe5 {[%clk 0:02:29]} 18... Ne8 {[%clk 0:01:02.3]} 19. Rd1
{[%clk 0:02:19.3]} 19... Rxd1+ {[%clk 0:00:53.5]} 20. Qxd1 {[%clk 0:02:18.5]}
20... Nc7 {[%clk 0:00:54.2]} 21. Rd3 {[%clk 0:02:15]} 21... b5 {[%clk
0:00:42.1]} 22. b4 {[%clk 0:02:07.9]} 22... Qa6 {[%clk 0:00:34.9]} 23. Rd7
{[%clk 0:02:06.3]} 23... Na8 {[%clk 0:00:12]} 24. Rd8 {[%clk 0:01:55.3]} 24...
Qb6 {[%clk 0:00:12.2]} 25. Rxf8+ {[%clk 0:01:53.5]} 25... Kxf8 {[%clk
0:00:13.1]} 26. Qd2 {[%clk 0:01:53.1]} 26... bxc4 {[%clk 0:00:07]} 27. Qd6+
{[%clk 0:01:51.8]} 27... Ke8 {[%clk 0:00:06.8]} 28. Be3 {[%clk 0:01:50.8]} 28...
Qc7 {[%clk 0:00:04.4]} 29. Qc5 {[%clk 0:01:43.4]} 29... Nb6 {[%clk 0:00:05]} 30.
f4 {[%clk 0:01:41.6]} 30... Nd5 {[%clk 0:00:03.4]} 31. Bd2 {[%clk 0:01:40.2]}
31... Qb6 {[%clk 0:00:03.3]} 32. Kf2 {[%clk 0:01:34.8]} 32... Qxc5+ {[%clk
0:00:02.2]} 33. bxc5 {[%clk 0:01:35.3]} 33... Kd7 {[%clk 0:00:03.1]} 34. Kf3
{[%clk 0:01:32.8]} 34... f5 {[%clk 0:00:03.3]} 35. exf6 {[%clk 0:01:32.1]} 35...
gxf6 {[%clk 0:00:03.9]} 36. Ke4 {[%clk 0:01:32.2]} 36... c3 {[%clk 0:00:03.3]}
37. Bc1 {[%clk 0:01:31.7]} 37... Kc7 {[%clk 0:00:02.4]} 38. g4 {[%clk
0:01:24.8]} 38... Kd7 {[%clk 0:00:02.9]} 39. h4 {[%clk 0:01:23.8]} 39... Ke7
{[%clk 0:00:03.6]} 40. h5 {[%clk 0:01:22.5]} 40... a5 {[%clk 0:00:02.7]} 41. g5
{[%clk 0:01:16.5]} 41... Kf7 {[%clk 0:00:02]} 42. Kd4 {[%clk 0:01:11.7]} 42...
a4 {[%clk 0:00:02]} 43. Ke4 {[%clk 0:01:04.5]} 43... Kg7 {[%clk 0:00:02.6]} 44.
Kd4 {[%clk 0:01:04]} 44... h6 {[%clk 0:00:02.6]} 45. Ke4 {[%clk 0:01:00.3]}
45... fxg5 {[%clk 0:00:02.3]} 46. fxg5 {[%clk 0:00:59.9]} 46... hxg5 {[%clk
0:00:03.2]} 47. Bxg5 {[%clk 0:00:58.9]} 47... Nf6+ {[%clk 0:00:03.8]} 48. Kd3
{[%clk 0:00:39.5]} 48... Nxh5 {[%clk 0:00:04.3]} 49. Kxc3 {[%clk 0:00:39.7]}
49... Nf6 {[%clk 0:00:04.7]} 50. Kb4 {[%clk 0:00:37.5]} 50... Kg6 {[%clk
0:00:05.4]} 51. Be3 {[%clk 0:00:36.7]} 51... Nd5+ {[%clk 0:00:05.8]} 0-1

[Event "Late-Titled-Tuesday-Blitz-February-27-2024"]
[Site "Chess.com"]
[Date "2024.02.27"]
[Round "2"]
[White "Korchmar_Vasiliy"]
[Black "WPWPWP-2015"]
[Result "1-0"]
[WhiteElo "2697"]
[BlackElo "2431"]
[TimeControl "180+1"]
[EndTime "14:17:54 PST"]
[Termination "Korchmar_Vasiliy won by checkmate"]

1. Nf3 {[%clk 0:03:00.9]} 1... Nf6 {[%clk 0:02:59.4]} 2. c4 {[%clk 0:03:01.1]}
2... c6 {[%clk 0:02:59.3]} 3. Nc3 {[%clk 0:03:00]} 3... d5 {[%clk 0:02:59.5]} 4.
e3 {[%clk 0:03:00.5]} 4... Bg4 {[%clk 0:02:58.6]} 5. h3 {[%clk 0:02:56.2]} 5...
Bxf3 {[%clk 0:02:57.9]} 6. Qxf3 {[%clk 0:02:56.2]} 6... e6 {[%clk 0:02:58.8]} 7.
b3 {[%clk 0:02:49.8]} 7... Nbd7 {[%clk 0:02:59]} 8. Bb2 {[%clk 0:02:49.6]} 8...
Qa5 {[%clk 0:02:49.8]} 9. a3 {[%clk 0:02:41.1]} 9... dxc4 {[%clk 0:02:42.3]} 10.
Bxc4 {[%clk 0:02:24.2]} 10... Ne5 {[%clk 0:02:39.6]} 11. Qe2 {[%clk 0:02:09.7]}
11... Nxc4 {[%clk 0:02:39.5]} 12. bxc4 {[%clk 0:02:10.4]} 12... Be7 {[%clk
0:02:34.8]} 13. O-O {[%clk 0:02:09.9]} 13... O-O {[%clk 0:02:34.3]} 14. d4
{[%clk 0:01:53.4]} 14... e5 {[%clk 0:02:27.9]} 15. dxe5 {[%clk 0:01:45.6]} 15...
Qxe5 {[%clk 0:02:15.4]} 16. Nd5 {[%clk 0:01:45.8]} 16... Qd6 {[%clk 0:02:14.9]}
17. Nxe7+ {[%clk 0:01:42.5]} 17... Qxe7 {[%clk 0:02:14.6]} 18. a4 {[%clk
0:01:41.2]} 18... Rfd8 {[%clk 0:02:13.4]} 19. a5 {[%clk 0:01:39.3]} 19... Ne4
{[%clk 0:02:05.3]} 20. Rfd1 {[%clk 0:01:29.5]} 20... f6 {[%clk 0:01:51.2]} 21.
a6 {[%clk 0:01:24.6]} 21... Rxd1+ {[%clk 0:01:39.7]} 22. Qxd1 {[%clk 0:01:25.5]}
22... Rd8 {[%clk 0:01:38]} 23. Qb3 {[%clk 0:01:21.1]} 23... Nc5 {[%clk
0:01:24.9]} 24. Qb4 {[%clk 0:01:10.8]} 24... b6 {[%clk 0:01:22.5]} 25. Bd4
{[%clk 0:01:10.4]} 25... Kf7 {[%clk 0:00:46.6]} 26. Bxc5 {[%clk 0:01:10.1]}
26... bxc5 {[%clk 0:00:42.3]} 27. Qb7 {[%clk 0:01:08.5]} 27... Qxb7 {[%clk
0:00:36.1]} 28. axb7 {[%clk 0:01:09.4]} 28... Rb8 {[%clk 0:00:36.3]} 29. Rxa7
{[%clk 0:01:09.6]} 29... Ke7 {[%clk 0:00:35.7]} 30. f4 {[%clk 0:00:59]} 30...
Kd6 {[%clk 0:00:27.8]} 31. Kf2 {[%clk 0:00:58.6]} 31... Kc7 {[%clk 0:00:27.7]}
32. Kf3 {[%clk 0:00:54.1]} 32... Rxb7 {[%clk 0:00:27.6]} 33. Rxb7+ {[%clk
0:00:54]} 33... Kxb7 {[%clk 0:00:27.9]} 34. Ke4 {[%clk 0:00:37.4]} 34... Kc7
{[%clk 0:00:27.2]} 35. Kf5 {[%clk 0:00:34.4]} 35... Kd7 {[%clk 0:00:22.7]} 36.
e4 {[%clk 0:00:33.7]} 36... Ke7 {[%clk 0:00:14.8]} 37. e5 {[%clk 0:00:34.2]}
37... g6+ {[%clk 0:00:03]} 38. Ke4 {[%clk 0:00:34.1]} 38... fxe5 {[%clk
0:00:01.9]} 39. Kxe5 {[%clk 0:00:34.7]} 39... Kd7 {[%clk 0:00:02.2]} 40. Kf6
{[%clk 0:00:33.7]} 40... Kd6 {[%clk 0:00:02.3]} 41. g4 {[%clk 0:00:32.9]} 41...
Kd7 {[%clk 0:00:02.3]} 42. f5 {[%clk 0:00:26]} 42... gxf5 {[%clk 0:00:01.7]} 43.
gxf5 {[%clk 0:00:26.9]} 43... Kd6 {[%clk 0:00:01.9]} 44. h4 {[%clk 0:00:27.6]}
44... Kd7 {[%clk 0:00:02]} 45. Kg7 {[%clk 0:00:27.3]} 45... Kd6 {[%clk
0:00:01.4]} 46. f6 {[%clk 0:00:27.8]} 46... Ke5 {[%clk 0:00:01.8]} 47. f7 {[%clk
0:00:28.4]} 47... Kd4 {[%clk 0:00:02.7]} 48. f8=Q {[%clk 0:00:29.3]} 48... Kxc4
{[%clk 0:00:02.7]} 49. Kxh7 {[%clk 0:00:30]} 49... Kb4 {[%clk 0:00:02.9]} 50.
Kg6 {[%clk 0:00:30.6]} 50... Kb5 {[%clk 0:00:02.5]} 51. h5 {[%clk 0:00:31.2]}
51... c4 {[%clk 0:00:03]} 52. h6 {[%clk 0:00:32]} 52... c5 {[%clk 0:00:03.3]}
53. h7 {[%clk 0:00:32.8]} 53... c3 {[%clk 0:00:03.8]} 54. h8=Q {[%clk
0:00:33.2]} 54... c2 {[%clk 0:00:04.4]} 55. Qb2+ {[%clk 0:00:32.4]} 55... Ka5
{[%clk 0:00:03.9]} 56. Qa8# {[%clk 0:00:31]} 1-0

[Event "Late-Titled-Tuesday-Blitz-February-27-2024"]
[Site "Chess.com"]
[Date "2024.02.27"]
[Round "2"]
[White "Bkmzzzzz"]
[Black "Mahan_83"]
[Result "1-0"]
[WhiteElo "2408"]
[BlackElo "2738"]
[TimeControl "180+1"]
[EndTime "14:17:54 PST"]
[Termination "Bkmzzzzz won by checkmate"]

1. e4 {[%clk 0:03:00.9]} 1... c5 {[%clk 0:02:58.1]} 2. Nf3 {[%clk 0:03:00.7]}
2... d6 {[%clk 0:02:58.5]} 3. d4 {[%clk 0:03:00.4]} 3... cxd4 {[%clk 0:02:59.4]}
4. Qxd4 {[%clk 0:03:00.8]} 4... Nc6 {[%clk 0:02:59.1]} 5. Bb5 {[%clk 0:03:01.3]}
5... Bd7 {[%clk 0:02:59.4]} 6. Qd3 {[%clk 0:03:01.2]} 6... Nf6 {[%clk
0:02:58.1]} 7. Bg5 {[%clk 0:02:58]} 7... e6 {[%clk 0:02:57.8]} 8. Nc3 {[%clk
0:02:58.3]} 8... Be7 {[%clk 0:02:55.7]} 9. O-O-O {[%clk 0:02:58.3]} 9... O-O
{[%clk 0:02:55.3]} 10. e5 {[%clk 0:02:58.6]} 10... Nd5 {[%clk 0:02:34.1]} 11.
Bxe7 {[%clk 0:02:48.2]} 11... Ncxe7 {[%clk 0:02:29.9]} 12. exd6 {[%clk
0:02:28.1]} 12... Ng6 {[%clk 0:01:53.5]} 13. Nxd5 {[%clk 0:02:18]} 13... exd5
{[%clk 0:01:54.3]} 14. Bxd7 {[%clk 0:02:02.6]} 14... Qxd7 {[%clk 0:01:55.2]} 15.
Qxd5 {[%clk 0:02:03]} 15... Rac8 {[%clk 0:01:55.7]} 16. Kb1 {[%clk 0:01:27.8]}
16... h6 {[%clk 0:01:41.6]} 17. Rd2 {[%clk 0:01:09.5]} 17... Rfe8 {[%clk
0:01:32.1]} 18. Rhd1 {[%clk 0:01:08.1]} 18... Nf4 {[%clk 0:01:16.2]} 19. Qd4
{[%clk 0:01:03.3]} 19... Ng6 {[%clk 0:01:13.3]} 20. g3 {[%clk 0:01:02.9]} 20...
a6 {[%clk 0:01:12.9]} 21. h4 {[%clk 0:01:03.3]} 21... f6 {[%clk 0:00:56.7]} 22.
Qd5+ {[%clk 0:00:53.5]} 22... Kh8 {[%clk 0:00:55.7]} 23. a3 {[%clk 0:00:50.8]}
23... Rcd8 {[%clk 0:00:48.8]} 24. Re1 {[%clk 0:00:46.2]} 24... Rxe1+ {[%clk
0:00:47.8]} 25. Nxe1 {[%clk 0:00:47.1]} 25... Ne5 {[%clk 0:00:46.4]} 26. f4
{[%clk 0:00:46.2]} 26... Nc6 {[%clk 0:00:45.2]} 27. c4 {[%clk 0:00:32.9]} 27...
Qg4 {[%clk 0:00:41.4]} 28. Qd3 {[%clk 0:00:31.7]} 28... Qe6 {[%clk 0:00:35.3]}
29. Nc2 {[%clk 0:00:29.8]} 29... Qg4 {[%clk 0:00:27.4]} 30. c5 {[%clk
0:00:28.1]} 30... Qh5 {[%clk 0:00:26.7]} 31. Qd5 {[%clk 0:00:27]} 31... Qg6
{[%clk 0:00:24.9]} 32. Ka2 {[%clk 0:00:25.7]} 32... Qxg3 {[%clk 0:00:23.8]} 33.
Nd4 {[%clk 0:00:20.1]} 33... Qxf4 {[%clk 0:00:23.7]} 34. Ne6 {[%clk 0:00:18.3]}
34... Qxh4 {[%clk 0:00:19.4]} 35. Nxd8 {[%clk 0:00:18.6]} 35... Nxd8 {[%clk
0:00:20.2]} 36. d7 {[%clk 0:00:19.2]} 36... f5 {[%clk 0:00:20]} 37. Re2 {[%clk
0:00:19.4]} 37... Qf6 {[%clk 0:00:18.7]} 38. Re8+ {[%clk 0:00:18.8]} 38... Kh7
{[%clk 0:00:19.2]} 39. Qg8+ {[%clk 0:00:13.6]} 39... Kg6 {[%clk 0:00:18.7]} 40.
Rxd8 {[%clk 0:00:14]} 40... f4 {[%clk 0:00:14.8]} 41. Rf8 {[%clk 0:00:14]} 41...
Qd4 {[%clk 0:00:13.9]} 42. d8=Q {[%clk 0:00:14]} 42... Qxc5 {[%clk 0:00:13.1]}
43. Qf7+ {[%clk 0:00:12.8]} 43... Kh7 {[%clk 0:00:08.8]} 44. Qd3+ {[%clk
0:00:13.3]} 44... Qf5 {[%clk 0:00:07.3]} 45. Qdxf5# {[%clk 0:00:13.4]} 1-0

[Event "Late-Titled-Tuesday-Blitz-February-27-2024"]
[Site "Chess.com"]
[Date "2024.02.27"]
[Round "2"]
[White "rhwr"]
[Black "DonMicheleCorleone"]
[Result "0-1"]
[WhiteElo "2316"]
[BlackElo "2526"]
[TimeControl "180+1"]
[EndTime "14:17:54 PST"]
[Termination "DonMicheleCorleone won by resignation"]

1. e4 {[%clk 0:02:58.8]} 1... e6 {[%clk 0:03:00.1]} 2. Nf3 {[%clk 0:02:58.6]}
2... d5 {[%clk 0:03:00.5]} 3. e5 {[%clk 0:02:59.4]} 3... c5 {[%clk 0:03:00.2]}
4. b4 {[%clk 0:03:00.2]} 4... d4 {[%clk 0:02:58.7]} 5. c3 {[%clk 0:02:52.7]}
5... dxc3 {[%clk 0:02:54.6]} 6. dxc3 {[%clk 0:02:51.3]} 6... Qxd1+ {[%clk
0:02:53.6]} 7. Kxd1 {[%clk 0:02:51.6]} 7... cxb4 {[%clk 0:02:54]} 8. cxb4 {[%clk
0:02:46.8]} 8... Bxb4 {[%clk 0:02:53.2]} 9. Bb5+ {[%clk 0:02:27.3]} 9... Bd7
{[%clk 0:02:52.8]} 10. a4 {[%clk 0:02:25.7]} 10... a6 {[%clk 0:02:50.9]} 11. Bd3
{[%clk 0:02:23.4]} 11... Nc6 {[%clk 0:02:47.5]} 12. Nbd2 {[%clk 0:02:22.3]}
12... O-O-O {[%clk 0:02:46.8]} 13. Nc4 {[%clk 0:02:20.1]} 13... Bc5 {[%clk
0:02:42.5]} 14. Ke2 {[%clk 0:02:19.5]} 14... Nge7 {[%clk 0:02:41]} 15. Bd2
{[%clk 0:02:10.1]} 15... Kb8 {[%clk 0:02:37.9]} 16. Rhb1 {[%clk 0:02:06.8]}
16... Nd4+ {[%clk 0:02:35.2]} 17. Nxd4 {[%clk 0:02:05.7]} 17... Bxd4 {[%clk
0:02:36.1]} 18. Ra3 {[%clk 0:01:55.4]} 18... Bc6 {[%clk 0:02:36.2]} 19. f3
{[%clk 0:01:54.5]} 19... Ng6 {[%clk 0:02:33.5]} 20. Bxg6 {[%clk 0:01:43.5]}
20... hxg6 {[%clk 0:02:34.4]} 21. h3 {[%clk 0:01:43.1]} 21... Bd5 {[%clk
0:02:30.7]} 22. Nb6 {[%clk 0:01:37.1]} 22... Bxe5 {[%clk 0:02:27.6]} 23. Nxd5
{[%clk 0:01:36]} 23... Rxd5 {[%clk 0:02:27.3]} 24. Rab3 {[%clk 0:01:34.2]} 24...
Rd7 {[%clk 0:02:27.3]} 25. Rb6 {[%clk 0:01:30.5]} 25... Rc8 {[%clk 0:02:20.5]}
26. Be3 {[%clk 0:01:16.9]} 26... Rc2+ {[%clk 0:02:03.8]} 27. Kf1 {[%clk
0:01:16.1]} 27... Ka8 {[%clk 0:01:53.5]} 28. R6b4 {[%clk 0:01:07.7]} 28... Rd3
{[%clk 0:01:45.7]} 29. Bb6 {[%clk 0:01:04.9]} 29... Rdd2 {[%clk 0:01:44.2]} 30.
Rh4 {[%clk 0:01:02.7]} 30... Rxg2 {[%clk 0:01:39.8]} 31. Rh8+ {[%clk 0:00:52.8]}
31... Bb8 {[%clk 0:01:39.9]} 32. Rd1 {[%clk 0:00:44.6]} 32... Rh2 {[%clk
0:01:35.8]} 33. a5 {[%clk 0:00:31.2]} 33... Rh1+ {[%clk 0:01:20.7]} 34. Bg1
{[%clk 0:00:31.2]} 34... b5 {[%clk 0:01:11.6]} 35. Rdd8 {[%clk 0:00:20.5]} 35...
Rc1+ {[%clk 0:01:11.7]} 36. Kf2 {[%clk 0:00:20.8]} 36... Rcxg1 {[%clk
0:01:05.5]} 37. Rxb8+ {[%clk 0:00:20.5]} 37... Ka7 {[%clk 0:01:06.1]} 38. Ra8+
{[%clk 0:00:18.9]} 38... Kb7 {[%clk 0:01:06.4]} 39. Rhb8+ {[%clk 0:00:18.9]}
39... Kc7 {[%clk 0:01:07]} 40. Rc8+ {[%clk 0:00:18.8]} 40... Kd7 {[%clk
0:01:07.6]} 41. Rd8+ {[%clk 0:00:17]} 41... Ke7 {[%clk 0:01:07.9]} 42. Re8+
{[%clk 0:00:15.4]} 42... Kf6 {[%clk 0:01:08.4]} 43. Rxa6 {[%clk 0:00:14.4]}
43... Ra1 {[%clk 0:01:05.1]} 44. Ke3 {[%clk 0:00:11.5]} 44... Rxh3 {[%clk
0:01:04]} 45. Rb8 {[%clk 0:00:09.8]} 45... Ra3+ {[%clk 0:01:01.8]} 46. Kd4
{[%clk 0:00:09.9]} 46... Rhxf3 {[%clk 0:00:53.1]} 47. Rxb5 {[%clk 0:00:09.2]}
47... Rf4+ {[%clk 0:00:52.3]} 48. Kc5 {[%clk 0:00:08.8]} 48... g5 {[%clk
0:00:49.4]} 49. Ra8 {[%clk 0:00:08.1]} 49... g4 {[%clk 0:00:43.5]} 50. Kb6
{[%clk 0:00:08.5]} 50... g3 {[%clk 0:00:41.2]} 51. a6 {[%clk 0:00:08.5]} 51...
g2 {[%clk 0:00:40.4]} 52. Rb1 {[%clk 0:00:07]} 52... Rf1 {[%clk 0:00:40.5]} 53.
Rb2 {[%clk 0:00:06.6]} 53... g1=Q+ {[%clk 0:00:40.3]} 0-1

[Event "Late-Titled-Tuesday-Blitz-February-27-2024"]
[Site "Chess.com"]
[Date "2024.02.27"]
[Round "2"]
[White "DonkyDonkyDonkey"]
[Black "Escudito"]
[Result "1-0"]
[WhiteElo "2902"]
[BlackElo "2407"]
[TimeControl "180+1"]
[EndTime "14:17:55 PST"]
[Termination "DonkyDonkyDonkey won by resignation"]

1. e4 {[%clk 0:03:00.9]} 1... c6 {[%clk 0:02:56.3]} 2. Nc3 {[%clk 0:03:01.3]}
2... d5 {[%clk 0:02:56]} 3. Nf3 {[%clk 0:03:02.2]} 3... Nf6 {[%clk 0:02:56.3]}
4. e5 {[%clk 0:03:01.5]} 4... Ne4 {[%clk 0:02:56.5]} 5. Ne2 {[%clk 0:03:02.1]}
5... Qb6 {[%clk 0:02:56.7]} 6. d4 {[%clk 0:03:02.8]} 6... c5 {[%clk 0:02:57.3]}
7. c3 {[%clk 0:03:02.3]} 7... cxd4 {[%clk 0:02:49.1]} 8. Nexd4 {[%clk
0:03:03.2]} 8... Nc6 {[%clk 0:02:39.1]} 9. h3 {[%clk 0:02:58.4]} 9... e6 {[%clk
0:02:29.7]} 10. Bd3 {[%clk 0:02:57.2]} 10... Bc5 {[%clk 0:02:19.1]} 11. O-O
{[%clk 0:02:57.2]} 11... Bd7 {[%clk 0:02:16.1]} 12. Rb1 {[%clk 0:02:51.6]} 12...
O-O {[%clk 0:02:10.3]} 13. Be3 {[%clk 0:02:51]} 13... a6 {[%clk 0:02:00.4]} 14.
Nxc6 {[%clk 0:02:47.3]} 14... Bxe3 {[%clk 0:01:26]} 15. Ne7+ {[%clk 0:02:10.5]}
15... Kh8 {[%clk 0:01:25.1]} 16. fxe3 {[%clk 0:02:11.1]} 16... Qxe3+ {[%clk
0:01:20.2]} 17. Kh1 {[%clk 0:02:05.1]} 17... Ng3+ {[%clk 0:01:14.8]} 18. Kh2
{[%clk 0:02:05.3]} 18... Nxf1+ {[%clk 0:01:15]} 19. Qxf1 {[%clk 0:02:06.2]}
19... Rae8 {[%clk 0:01:14.2]} 20. Re1 {[%clk 0:01:57.7]} 20... Qc5 {[%clk
0:01:02]} 21. Bxh7 {[%clk 0:01:52.1]} 21... Qxe7 {[%clk 0:00:53.1]} 22. Bc2
{[%clk 0:01:52.5]} 22... Bc6 {[%clk 0:00:40.8]} 23. Rd1 {[%clk 0:01:52.1]} 23...
Qc7 {[%clk 0:00:40.5]} 24. Rd4 {[%clk 0:01:52.1]} 24... g6 {[%clk 0:00:34.3]}
25. Qc1 {[%clk 0:01:52.2]} 25... Kg7 {[%clk 0:00:32.8]} 26. Qf4 {[%clk
0:01:49.8]} 26... Qe7 {[%clk 0:00:30.7]} 27. Qg3 {[%clk 0:01:50]} 27... Rh8
{[%clk 0:00:28.5]} 28. Rg4 {[%clk 0:01:50.7]} 28... Rh6 {[%clk 0:00:27.9]} 29.
Nd4 {[%clk 0:01:51.4]} 29... Rg8 {[%clk 0:00:22.5]} 30. Rf4 {[%clk 0:01:50.7]}
30... Kf8 {[%clk 0:00:21.5]} 31. Rf6 {[%clk 0:01:50.9]} 31... Ke8 {[%clk
0:00:20.6]} 32. Qf4 {[%clk 0:01:49.7]} 32... Rh7 {[%clk 0:00:19.9]} 33. b4
{[%clk 0:01:40.2]} 33... Bd7 {[%clk 0:00:20]} 34. a4 {[%clk 0:01:40.2]} 34... g5
{[%clk 0:00:20.4]} 35. Qg3 {[%clk 0:01:39.3]} 35... Rhg7 {[%clk 0:00:20.6]} 36.
b5 {[%clk 0:01:38.7]} 36... axb5 {[%clk 0:00:19.8]} 37. axb5 {[%clk 0:01:39.6]}
37... g4 {[%clk 0:00:20.4]} 38. h4 {[%clk 0:01:39.4]} 38... Rh8 {[%clk
0:00:18.7]} 39. Kg1 {[%clk 0:01:39.4]} 39... Rh5 {[%clk 0:00:18.6]} 40. Qe3
{[%clk 0:01:37.5]} 40... Qd8 {[%clk 0:00:17.9]} 41. g3 {[%clk 0:01:37.6]} 41...
Qc7 {[%clk 0:00:18]} 42. Qf2 {[%clk 0:01:30.8]} 42... Qxe5 {[%clk 0:00:17.6]}
43. Kg2 {[%clk 0:01:28.7]} 43... Qd6 {[%clk 0:00:17.2]} 44. Nf5 {[%clk
0:01:26.1]} 44... Rxf5 {[%clk 0:00:16]} 45. Bxf5 {[%clk 0:01:25]} 45... Qe7
{[%clk 0:00:15]} 46. Bd3 {[%clk 0:01:24.7]} 46... Kf8 {[%clk 0:00:14.3]} 47. Rh6
{[%clk 0:01:23.6]} 47... Rg8 {[%clk 0:00:12.2]} 48. Qa7 {[%clk 0:01:21.2]} 48...
Be8 {[%clk 0:00:11.7]} 49. Qd4 {[%clk 0:01:20.1]} 49... Qc7 {[%clk 0:00:11.2]}
50. Bh7 {[%clk 0:01:12.9]} 50... Rg7 {[%clk 0:00:10.5]} 51. Qf6 {[%clk
0:01:06.7]} 51... Qe7 {[%clk 0:00:09.5]} 52. Qe5 {[%clk 0:01:07]} 52... Qd7
{[%clk 0:00:09]} 53. Bd3 {[%clk 0:01:06.7]} 53... Rg8 {[%clk 0:00:05.5]} 54. Rf6
{[%clk 0:01:07.3]} 54... Qe7 {[%clk 0:00:04.7]} 55. h5 {[%clk 0:01:07.8]} 55...
Bd7 {[%clk 0:00:04.3]} 56. h6 {[%clk 0:01:08.3]} 56... Rh8 {[%clk 0:00:02.5]}
57. h7 {[%clk 0:01:05.9]} 57... Ke8 {[%clk 0:00:01.9]} 58. Rxe6 {[%clk
0:01:01.7]} 58... Qxe6 {[%clk 0:00:01.4]} 59. Qxh8+ {[%clk 0:01:02.5]} 59... Ke7
{[%clk 0:00:02.3]} 60. Qd4 {[%clk 0:01:03.2]} 60... Qh6 {[%clk 0:00:02]} 61.
h8=Q {[%clk 0:01:03.5]} 61... Qxh8 {[%clk 0:00:02.3]} 62. Qxh8 {[%clk
0:01:04.4]} 1-0